bitfinex-derivatives/quotes_SOLF0:USTF0_20251018
["timestamp","ask_amount","ask_price","bid_price","bid_amount"]
[1760759631294,1.29927634,184.78,184.71,7.6806]
[1760759631496,1.29927634,184.78,184.72,2.81]
[1760759635598,1.29927634,184.8,184.74,2.81]
[1760759636199,1.29927634,184.86,184.82,2.81]
[1760759636405,1.29927634,184.84,184.78,2.81]
[1760759640106,1.29927634,184.84,184.79,4.8687]
[1760759640308,1.29927634,184.84,184.81,2.81]
[1760759640702,1.29927634,184.84,184.8,2.81]
[1760759640905,1.29927634,184.86,184.8,2.81]
[1760759641603,9.58234805,184.91,184.81,1.29927634]
[1760759641808,1.29927634,184.89,184.82,2.81]
[1760759643410,1.29927634,184.87,184.74,2.81]
[1760759643609,1.29927634,184.8,184.74,2.81]
[1760759643805,5.05438461,184.84,184.7,4.16927634]
[1760759644017,4.8686,184.8,184.7,4.16927634]
[1760759644311,1.29927634,184.81,184.74,1.29927634]
[1760759644512,1.29927634,184.83,184.75,2.87]
[1760759645017,5.05438461,184.87,184.75,2.87]
[1760759645213,1.29927634,184.82,184.75,2.87]
[1760759645418,2.02896004,184.85,184.75,2.87]
[1760759645619,6.7491206,184.85,184.75,2.87]
[1760759645818,2.02896004,184.85,184.75,2.87]
[1760759646118,4.8678,184.83,184.75,2.87]
[1760759648418,8.90195583,184.83,184.75,2.87]
[1760759649622,4.8678,184.83,184.75,2.87]
[1760759650519,8.9013875,184.83,184.75,2.87]
[1760759650823,4.8678,184.83,184.75,2.87]
[1760759651520,4.8681,184.82,184.75,2.87]
[1760759652022,6.89706004,184.82,184.75,2.87]
[1760759652324,15.79486834,184.82,184.75,2.87]
[1760759652523,4.86452069,184.81,184.75,2.87]
[1760759652720,6.89706004,184.82,184.75,2.87]
[1760759653122,4.8684,184.81,184.75,2.87]
[1760759653320,4.8684,184.81,184.72,7.7505]
[1760759654122,8.90084861,184.81,184.72,2.88]
[1760759654421,6.89348073,184.82,184.72,2.88]
[1760759654619,2.02896004,184.83,184.72,2.88]
[1760759654820,4.8684,184.81,184.72,2.88]
[1760759655216,4.8686,184.8,184.72,2.88]
[1760759656020,4.869,184.78,184.72,2.88]
[1760759657527,4.8685,184.8,184.72,2.88]
[1760759659720,4.8689,184.79,184.72,2.88]
[1760759660025,2.02896004,184.81,184.72,2.88]
[1760759660622,4.8686,184.8,184.72,2.88]
[1760759664232,2.02896004,184.81,184.72,2.88]
[1760759664629,4.03041287,184.8,184.72,2.88]
[1760759665734,4.8695,184.77,184.72,2.88]
[1760759666029,4.8695,184.77,184.68,7.7515]
[1760759666437,4.8697,184.76,184.68,7.7515]
[1760759669836,4.8697,184.76,184.7,2.88]
[1760759670434,6.18973508,184.78,184.7,2.88]
[1760759670435,4.8699,184.75,184.7,2.88]
[1760759670932,4.8699,184.75,184.68,2.88]
[1760759676635,2.02896004,184.78,184.7,2.88]
[1760759676834,9.02519928,184.8,184.7,2.88]
[1760759677036,4.16174298,184.79,184.7,2.88]
[1760759677339,4.16174298,184.78,184.7,2.88]
[1760759677537,4.16174298,184.79,184.7,2.88]
[1760759677735,4.16174298,184.78,184.7,2.88]
[1760759677935,9.03044298,184.79,184.7,7.7509]
[1760759678138,4.16174298,184.78,184.71,2.88]
[1760759678332,9.03044298,184.79,184.71,2.88]
[1760759678532,4.16174298,184.78,184.71,2.88]
[1760759678728,4.8687,184.79,184.71,2.88]
[1760759678928,13.89389928,184.79,184.71,2.88]
[1760759679233,4.16174298,184.78,184.71,2.88]
[1760759679437,4.8687,184.79,184.71,2.88]
[1760759679638,9.03044298,184.79,184.71,2.88]
[1760759679837,4.16174298,184.78,184.71,2.88]
[1760759680037,13.89305698,184.79,184.71,2.88]
[1760759680237,4.16174298,184.78,184.71,2.88]
[1760759680438,4.8687,184.79,184.71,2.88]
[1760759680638,9.03044298,184.79,184.71,2.88]
[1760759680840,4.16174298,184.78,184.71,2.88]
[1760759681035,9.03044298,184.79,184.71,2.88]
[1760759681239,4.16174298,184.78,184.71,2.88]
[1760759681441,4.8687,184.79,184.71,2.88]
[1760759681738,25.08,184.85,184.73,2.66]
[1760759681739,4.86286376,184.82,184.73,2.66]
[1760759681932,9.02477308,184.84,184.73,2.66]
[1760759682133,4.86286376,184.85,184.75,2.66]
[1760759682435,9.02379156,184.87,184.78,2.66]
[1760759682634,4.1609278,184.86,184.78,2.66]
[1760759682841,4.1609278,184.86,184.78,2.02896004]
[1760759683044,4.1609278,184.86,184.79,2.66]
[1760759683237,9.02379156,184.87,184.79,2.66]
[1760759683439,4.8663,184.88,184.79,2.66]
[1760759683440,4.1609278,184.86,184.79,2.66]
[1760759683638,4.1609278,184.87,184.79,2.66]
[1760759685535,9.02379156,184.87,184.79,2.66]
[1760759686641,4.1609278,184.87,184.79,2.66]
[1760759686841,4.1609278,184.88,184.82,4.8678]
[1760759687146,4.1609278,184.88,184.78,2.02896004]
[1760759687147,4.86286376,184.9,184.83,2.89]
[1760759687340,9.02133635,184.93,184.83,2.89]
[1760759687540,9.02133635,184.92,184.83,2.89]
[1760759687841,4.15847259,184.91,184.83,2.89]
[1760759688044,4.15847259,184.92,184.88,2.89]
[1760759688244,4.86286376,184.96,184.88,2.89]
[1760759688440,4.8648,184.94,184.87,2.02896004]
[1760759688640,9.0206077,184.94,184.84,4.91896004]
[1760759688840,4.1558077,184.93,184.84,4.91896004]
[1760759689336,13.88347146,184.94,184.84,9.78626004]
[1760759689540,9.01867146,184.93,184.84,9.78626004]
[1760759689942,4.1558077,184.93,184.84,9.78626004]
[1760759690146,4.8648,184.94,184.84,9.78626004]
[1760759690540,9.0206077,184.94,184.84,9.78626004]
[1760759690739,4.1558077,184.93,184.84,9.78626004]
[1760759690949,4.8648,184.94,184.84,9.78626004]
[1760759691347,9.0206077,184.94,184.84,9.78626004]
[1760759691546,4.8648,184.94,184.84,9.78626004]
[1760759692144,9.0134722,184.94,184.84,9.78626004]
[1760759692351,4.8648,184.94,184.84,9.78626004]
[1760759693350,4.8642,184.97,184.87,2.89]
[1760759693547,4.8642,184.97,184.88,2.89]
[1760759693747,4.14419496,184.98,184.88,7.7563]
[1760759694050,8.99571888,184.99,184.89,2.89]
[1760759694552,4.14419496,184.99,184.89,2.89]
[1760759694752,51.91236004,185.0,184.89,2.89]
[1760759695450,49.8834,185.0,184.89,2.89]
[1760759696253,4.8637,184.99,184.89,2.89]
[1760759698547,45.02,185.0,184.9,4.91896004]
[1760759699150,45.02,185.0,184.9,2.89]
[1760759699955,45.02,185.0,184.9,7.7555]
[1760759700147,45.02,185.0,184.91,2.89]
[1760759700349,4.8628,185.02,184.91,2.89]
[1760759700846,4.8628,185.02,184.93,4.865]
[1760759701054,4.8628,185.02,184.94,2.89]
[1760759701647,2.02896004,185.03,184.94,2.89]
[1760759701851,45.04,185.05,184.96,2.89]
[1760759702050,15.89410989,185.07,184.96,2.89]
[1760759702051,2.02896004,185.09,184.96,2.02896004]
[1760759702350,2.02896004,185.09,184.97,2.89]
[1760759702742,4.8611,185.08,184.98,2.89]
[1760759704155,4.8611,185.08,184.99,2.89]
[1760759704355,4.8606,185.1,184.99,2.89]
[1760759705461,1.29468948,185.09,185.02,2.85]
[1760759705961,1.29468948,185.11,185.02,2.85]
[1760759707054,45.02,185.12,185.04,2.85]
[1760759707258,45.02,185.12,185.06,2.85]
[1760759707460,1.29468948,185.13,185.06,2.85]
[1760759710354,1.29468948,185.15,185.06,2.85]
[1760759710863,4.859,185.17,185.06,2.85]
[1760759710864,1.29468948,185.13,185.06,2.85]
[1760759711764,1.29468948,185.11,184.99,4.8632]
[1760759711962,1.29468948,185.07,185.0,4.18468948]
[1760759712862,1.29468948,185.09,185.01,7.7529]
[1760759713063,1.29468948,185.09,185.02,2.89]
[1760759713267,1.29468948,185.09,185.03,2.89]
[1760759713655,1.29468948,185.11,185.03,2.89]
[1760759713860,1.29468948,185.11,185.04,2.89]
[1760759714657,1.29468948,185.09,185.01,2.89]
[1760759715461,1.29468948,185.09,185.02,4.8626]
[1760759715969,1.29468948,185.09,185.03,2.89]
[1760759716364,1.29468948,185.09,185.04,4.8621]
[1760759716566,1.29468948,185.09,185.05,2.89]
[1760759716961,1.29468948,185.09,185.04,4.8621]
[1760759717171,1.29468948,185.09,185.06,2.89]
[1760759717360,1.29468948,185.09,185.05,2.89]
[1760759717671,1.29468948,185.09,185.06,2.89]
[1760759717859,1.29468948,185.09,185.05,2.89]
[1760759718064,1.29468948,185.09,185.06,2.89]
[1760759718667,1.29468948,185.07,185.01,4.8628]
[1760759718873,1.29468948,185.05,184.98,2.89]
[1760759719968,1.29468948,185.05,184.99,4.8634]
[1760759720172,1.29468948,185.05,185.0,2.89]
[1760759720362,1.29468948,185.05,184.99,4.8634]
[1760759720966,1.29468948,185.03,184.98,2.89]
[1760759721171,1.29468948,185.03,184.96,4.864]
[1760759721172,1.29468948,185.03,184.97,2.89]
[1760759721974,1.29468948,185.03,184.97,7.7537]
[1760759723976,1.29468948,185.05,184.97,9.04838948]
[1760759725071,1.29468948,185.05,184.97,7.7537]
[1760759725274,1.29468948,185.0,184.93,2.89]
[1760759728277,1.29468948,184.98,184.9,7.7558]
[1760759728488,5.04318262,185.07,184.9,7.7558]
[1760759728489,1.29468948,184.96,184.9,7.7558]
[1760759729079,1.29468948,184.96,184.9,2.89]
[1760759731381,4.86553491,184.95,184.87,6.16098948]
[1760759731790,1.29468948,184.96,184.87,6.16098948]
[1760759732273,1.29468948,184.94,184.87,4.8663]
[1760759736281,4.8655,184.92,184.86,2.89]
[1760759736487,1.29468948,184.91,184.84,2.89]
[1760759736678,1.29468948,184.93,184.86,2.89]
[1760759736882,1.29468948,184.95,184.86,2.89]
[1760759738083,1.29468948,184.95,184.88,1.29468948]
[1760759739288,1.29468948,184.95,184.86,2.89]
[1760759739483,1.29468948,184.93,184.86,2.89]
[1760759740291,4.8652,184.93,184.87,1.29468948]
[1760759742384,4.8644,184.96,184.88,2.62]
[1760759743390,4.8644,184.96,184.87,1.29468948]
[1760759743391,6.15938948,184.95,184.87,1.29468948]
[1760759743588,6.15938948,184.95,184.85,3.91468948]
[1760759743785,1.29468948,184.95,184.85,3.91468948]
[1760759743986,6.15978948,184.93,184.85,3.91468948]
[1760759744193,1.29468948,184.93,184.85,3.91468948]
[1760759745288,6.16038948,184.91,184.85,2.62]
[1760759746693,4.8657,184.91,184.86,2.62]
[1760759746890,4.8657,184.91,184.85,1.29468948]
[1760759747084,4.8657,184.91,184.86,2.62]
[1760759747490,6.15978948,184.93,184.86,2.62]
[1760759748190,4.8651,184.93,184.87,1.29468948]
[1760759748492,6.15908948,184.96,184.88,2.62]
[1760759752194,6.15848948,184.98,184.89,1.29468948]
[1760759752495,4.8638,184.98,184.93,1.29468948]
[1760759752689,4.8638,184.98,184.94,2.62]
[1760759755892,4.8638,184.98,184.93,1.29468948]
[1760759756195,4.8642,184.97,184.91,1.29468948]
[1760759759098,4.8642,184.97,184.89,2.62]
[1760759759288,4.8642,184.97,184.9,1.29468948]
[1760759761296,1.29468948,184.98,184.9,1.29468948]
[1760759761297,4.8644,184.96,184.9,1.29468948]
[1760759761889,4.8644,184.96,184.89,2.62]
[1760759761890,1.29468948,184.96,184.87,1.29468948]
[1760759762994,1.29468948,184.94,184.87,1.29468948]
[1760759763198,1.29468948,184.94,184.85,1.29468948]
[1760759763398,1.29468948,184.92,184.83,81.93427825]
[1760759763693,1.29468948,184.9,184.8,1.29468948]
[1760759763892,1.29468948,184.88,184.8,1.29468948]
[1760759764595,1.29468948,184.86,184.78,2.62]
[1760759764801,1.29468948,184.86,184.78,3.91468948]
[1760759765201,4.8674,184.85,184.78,3.91468948]
[1760759765505,4.8674,184.85,184.78,2.62]
[1760759767696,4.8676,184.84,184.78,2.62]
[1760759767902,2.0282611,184.86,184.74,2.79]
[1760759769006,6.78444311,184.92,184.74,2.79]
[1760759769007,2.0282611,184.83,184.74,2.79]
[1760759769603,4.8682,184.81,184.74,2.79]
[1760759772007,4.8687,184.79,184.74,2.79]
[1760759772311,4.08106936,184.85,184.63,140.1]
[1760759772312,2.0282611,184.8,184.69,2.62]
[1760759774116,4.8692,184.78,184.69,2.62]
[1760759791520,4.8694,184.77,184.69,2.62]
[1760759793528,6.8976611,184.77,184.69,2.62]
[1760759795424,2.0282611,184.77,184.69,2.62]
[1760759795824,2.0282611,184.77,184.62,2.0282611]
[1760759795825,2.0282611,184.77,184.63,2.62]
[1760759796723,2.0282611,184.74,184.63,2.62]
[1760759797229,2.0282611,184.71,184.63,2.62]
[1760759798128,4.8711,184.7,184.63,2.62]
[1760759803337,2.0282611,184.75,184.63,2.62]
[1760759803635,4.07015335,184.79,184.65,2.89]
[1760759803829,4.869,184.79,184.7,2.89]
[1760759804030,2.0282611,184.77,184.7,2.89]
[1760759805029,4.87,184.75,184.67,2.89]
[1760759805937,4.87,184.75,184.67,7.7617]
[1760759806137,4.87,184.75,184.68,2.89]
[1760759806440,4.8692,184.78,184.68,2.89]
[1760759806736,4.8692,184.78,184.69,2.89]
[1760759806926,8.93935335,184.78,184.69,2.89]
[1760759807133,4.8692,184.78,184.69,2.89]
[1760759807533,8.94939345,184.78,184.69,2.89]
[1760759807732,4.08019345,184.77,184.69,2.89]
[1760759808031,4.8692,184.78,184.69,2.89]
[1760759808233,4.08019345,184.77,184.69,2.89]
[1760759808936,8.87758214,184.77,184.69,2.89]
[1760759809840,4.08019345,184.77,184.69,2.89]
[1760759810336,4.08019345,184.76,184.69,2.89]
[1760759810536,4.08019345,184.77,184.69,2.89]
[1760759811938,4.08019345,184.77,184.7,2.89]
[1760759812439,2.0282611,184.8,184.7,2.89]
[1760759812440,8.89386379,184.78,184.7,2.89]
[1760759812641,4.08019345,184.77,184.7,2.89]
[1760759812840,8.89386379,184.78,184.7,2.89]
[1760759813142,4.08019345,184.77,184.7,2.89]
[1760759813447,8.89386379,184.78,184.7,2.89]
[1760759813744,4.08019345,184.77,184.7,2.89]
[1760759814338,4.08019345,184.78,184.7,2.89]
[1760759814644,4.08019345,184.77,184.7,2.89]
[1760759814844,4.08019345,184.78,184.7,2.89]
[1760759816438,8.94909345,184.79,184.7,2.89]
[1760759817344,13.76936153,184.79,184.7,2.89]
[1760759817645,4.08019345,184.78,184.7,2.89]
[1760759817945,8.94909345,184.79,184.7,2.89]
[1760759818442,13.76968969,184.79,184.7,2.89]
[1760759818649,4.08019345,184.78,184.7,2.89]
[1760759818849,8.94909345,184.79,184.7,2.89]
[1760759819644,13.76970182,184.79,184.7,2.89]
[1760759819846,4.08019345,184.78,184.7,2.89]
[1760759820047,8.94909345,184.79,184.7,2.89]
[1760759820850,4.08019345,184.79,184.71,2.89]
[1760759821056,4.08019345,184.8,184.71,2.89]
[1760759821254,8.90052874,184.81,184.71,2.89]
[1760759821452,13.76892874,184.81,184.72,4.8704]
[1760759821655,6.10845455,184.8,184.73,2.89]
[1760759822349,2.0282611,184.8,184.68,2.0282611]
[1760759822555,2.0282611,184.8,184.74,2.89]
[1760759823156,60.91371762,184.82,184.74,2.89]
[1760759823458,4.09487548,184.81,184.74,7.7598]
[1760759823658,4.09487548,184.81,184.74,2.89]
[1760759824955,8.96327548,184.81,184.74,2.89]
[1760759826058,6.8960611,184.83,184.74,2.89]
[1760759826452,10.98958108,184.83,184.74,2.89]
[1760759826848,4.09351998,184.83,184.77,2.87]
[1760759827056,4.09351998,184.84,184.77,2.87]
[1760759827258,49.7672,184.85,184.77,2.87]
[1760759827455,1.29815462,184.84,184.77,2.87]
[1760759828053,1.29815462,184.84,184.77,4.869]
[1760759828358,1.29815462,184.84,184.78,2.87]
[1760759828654,1.29815462,184.82,184.75,6.16785462]
[1760759828958,1.29815462,184.82,184.76,2.87]
[1760759831852,1.29815462,184.82,184.77,2.84]
[1760759832061,1.29815462,184.84,184.77,2.84]
[1760759833957,1.29815462,184.84,184.77,7.709]
[1760759837063,1.29815462,184.84,184.78,2.84]
[1760759837463,1.29815462,184.82,184.78,2.84]
[1760759838264,1.29815462,184.82,184.77,4.869]
[1760759838461,1.29815462,184.82,184.79,2.84]
[1760759838668,1.29815462,184.84,184.79,2.84]
[1760759840055,1.29815462,184.84,184.79,4.8685]
[1760759840667,1.29815462,184.84,184.8,2.84]
[1760759841170,1.29815462,184.84,184.81,2.84]
[1760759841467,1.29815462,184.84,184.79,4.8685]
[1760759841671,1.29815462,184.84,184.8,2.84]
[1760759841864,1.29815462,184.84,184.81,2.84]
[1760759842059,1.29815462,184.84,184.8,2.84]
[1760759842573,1.29815462,184.84,184.81,2.84]
[1760759842874,1.29815462,184.84,184.8,2.84]
[1760759843266,1.29815462,184.84,184.79,4.8685]
[1760759843563,1.29815462,184.84,184.8,2.84]
[1760759844269,1.29815462,184.84,184.79,4.8685]
[1760759844676,1.29815462,184.84,184.8,2.84]
[1760759844873,1.29815462,184.84,184.81,2.84]
[1760759845070,1.29815462,184.84,184.79,4.8685]
[1760759845270,1.29815462,184.82,184.79,2.84]
[1760759845465,1.29815462,184.8,184.77,2.84]
[1760759845677,8.86651946,184.87,184.77,2.84]
[1760759845678,1.29815462,184.78,184.77,2.84]
[1760759845973,1.29815462,184.78,184.75,2.84]
[1760759846974,4.8681,184.82,184.74,7.7099]
[1760759847273,1.29815462,184.77,184.75,2.84]
[1760759847666,4.8681,184.82,184.75,2.84]
[1760759847863,1.29815462,184.79,184.75,4.8695]
[1760759848068,1.29815462,184.79,184.76,2.84]
[1760759848377,1.29815462,184.79,184.77,2.84]
[1760759848772,1.29815462,184.79,184.76,2.84]
[1760759849166,1.29815462,184.81,184.73,1.29815462]
[1760759849365,1.29815462,184.81,184.74,2.84]
[1760759849766,1.29815462,184.81,184.77,4.869]
[1760759849967,1.29815462,184.83,184.77,4.869]
[1760759850373,1.29815462,184.83,184.78,2.84]
[1760759850570,1.29815462,184.83,184.77,4.869]
[1760759850775,1.29815462,184.83,184.78,2.84]
[1760759850975,1.29815462,184.83,184.77,4.869]
[1760759851174,1.29815462,184.83,184.8,2.84]
[1760759851481,1.29815462,184.85,184.79,4.8687]
[1760759851675,1.29815462,184.85,184.8,2.84]
[1760759852077,1.29815462,184.85,184.79,4.8687]
[1760759852276,1.29815462,184.85,184.81,2.84]
[1760759855275,1.29815462,184.86,184.79,7.7087]
[1760759856282,1.29815462,184.86,184.8,4.8682]
[1760759856482,1.29815462,184.86,184.81,2.84]
[1760759856783,1.29815462,184.86,184.82,2.84]
[1760759858372,1.29815462,184.84,184.8,7.7082]
[1760759859485,1.29815462,184.84,184.8,4.8682]
[1760759859672,1.29815462,184.84,184.8,2.84]
[1760759861479,1.29815462,184.84,184.75,1.29815462]
[1760759861480,1.29815462,184.82,184.76,2.7]
[1760759862478,22.71024612,184.89,184.76,2.7]
[1760759862479,5.37521982,184.84,184.77,2.7]
[1760759862677,1.29815462,184.84,184.77,2.7]
[1760759862878,5.37521982,184.84,184.77,2.7]
[1760759863078,1.29815462,184.84,184.77,2.7]
[1760759863278,4.0770652,184.83,184.77,2.7]
[1760759863482,1.29815462,184.82,184.78,2.7]
[1760759863684,1.29815462,184.82,184.76,4.8693]
[1760759863982,1.29815462,184.82,184.77,2.7]
[1760759864185,1.29815462,184.82,184.74,4.87]
[1760759864380,5.37521982,184.82,184.75,2.7]
[1760759864581,1.29815462,184.82,184.75,2.7]
[1760759864981,1.29815462,184.8,184.76,2.7]
[1760759865177,1.29815462,184.8,184.74,4.87]
[1760759865382,1.29815462,184.8,184.75,2.7]
[1760759865584,1.29815462,184.8,184.74,4.87]
[1760759865779,1.29815462,184.8,184.75,2.7]
[1760759866175,1.29815462,184.8,184.76,2.7]
[1760759866379,1.29815462,184.8,184.75,2.7]
[1760759866583,1.29815462,184.8,184.74,4.87]
[1760759867476,1.29815462,184.8,184.75,2.7]
[1760759867780,1.29815462,184.8,184.76,2.7]
[1760759867983,1.29815462,184.8,184.75,2.7]
[1760759868384,1.29815462,184.8,184.74,4.87]
[1760759868580,1.29815462,184.8,184.75,2.7]
[1760759868984,1.29815462,184.8,184.74,4.87]
[1760759869180,1.29815462,184.8,184.75,2.7]
[1760759869378,1.29815462,184.8,184.69,54.86638231]
[1760759869379,1.29815462,184.78,184.7,2.7]
[1760759869684,1.29815462,184.78,184.69,1.29815462]
[1760759869685,1.29815462,184.8,184.72,2.7]
[1760759871976,1.29815462,184.8,184.73,4.8701]
[1760759872188,1.29815462,184.8,184.74,2.7]
[1760759872379,1.29815462,184.78,184.7,2.7]
[1760759873885,1.29815462,184.76,184.7,7.5709]
[1760759874683,4.8692,184.78,184.71,2.7]
[1760759874985,6.16735462,184.78,184.71,2.7]
[1760759880086,4.8695,184.77,184.69,1.29815462]
[1760759880286,4.8695,184.77,184.7,2.7]
[1760759883984,4.78749767,184.81,184.67,3.99815462]
[1760759883985,1.29815462,184.76,184.67,3.99815462]
[1760759885095,4.8702,184.74,184.67,3.99815462]
[1760759886993,6.16835462,184.74,184.67,2.7]
[1760759889491,4.8702,184.74,184.67,2.7]
[1760759894395,4.8705,184.73,184.67,2.7]
[1760759894597,2.0309478,184.7,184.58,2.84]
[1760759896100,4.8721,184.67,184.6,2.84]
[1760759896403,8.78910809,184.75,184.6,2.84]
[1760759896404,4.09769422,184.74,184.6,2.84]
[1760759896597,2.0309478,184.7,184.6,2.84]
[1760759898006,4.8714,184.69,184.6,7.7135]
[1760759899300,4.8714,184.69,184.6,4.8735]
[1760759899604,4.8714,184.69,184.61,2.84]
[1760759899902,4.8714,184.69,184.62,2.84]
[1760759900898,4.08857123,184.74,184.64,2.84]
[1760759901100,2.0309478,184.75,184.64,2.84]
[1760759902106,4.8703,184.73,184.64,2.84]
[1760759902705,4.8703,184.73,184.65,2.84]
[1760759903710,2.0309478,184.72,184.65,2.84]
[1760759905007,4.871,184.71,184.65,2.84]
[1760759907608,2.0309478,184.72,184.63,2.84]
[1760759908909,4.8715,184.69,184.63,2.84]
[1760759911508,4.8718,184.68,184.63,2.84]
[1760759911706,4.8718,184.68,184.6,4.8735]
[1760759911908,4.8718,184.68,184.61,2.84]
[1760759923224,4.8721,184.67,184.61,2.84]
[1760759923528,2.0309478,184.69,184.61,2.84]
[1760759924326,4.08558419,184.7,184.61,2.84]
[1760759924520,2.0309478,184.7,184.61,2.84]
[1760759926026,4.8717,184.68,184.61,2.84]
[1760759927830,8.96794866,184.71,184.61,2.84]
[1760759928029,2.0309478,184.73,184.61,2.84]
[1760759928823,6.12686589,184.73,184.61,2.84]
[1760759929135,4.09591809,184.75,184.65,2.0309478]
[1760759929335,8.76655947,184.76,184.66,2.85]
[1760759929528,4.09591809,184.75,184.66,2.85]
[1760759929832,4.09591809,184.76,184.69,2.85]
[1760759930833,8.96521809,184.77,184.69,2.85]
[1760759931032,4.09591809,184.76,184.69,2.85]
[1760759931233,8.96521809,184.77,184.69,2.85]
[1760759932838,4.09591809,184.77,184.7,2.85]
[1760759933043,4.09591809,184.78,184.7,2.85]
[1760759933341,4.09591809,184.78,184.71,2.85]
[1760759933540,8.96511809,184.78,184.71,2.85]
[1760759933738,4.09591809,184.77,184.71,2.85]
[1760759934638,13.63392043,184.78,184.71,2.85]
[1760759934836,4.09591809,184.77,184.71,2.85]
[1760759935034,4.8692,184.78,184.71,2.85]
[1760759935540,8.96511809,184.78,184.71,2.85]
[1760759935742,4.09591809,184.77,184.71,2.85]
[1760759935944,4.09591809,184.79,184.71,2.85]
[1760759937742,8.96481809,184.79,184.71,2.85]
[1760759937931,4.09591809,184.78,184.71,2.85]
[1760759938135,4.8689,184.79,184.71,2.85]
[1760759938335,8.96481809,184.79,184.71,2.85]
[1760759938537,4.09591809,184.78,184.71,2.85]
[1760759938736,4.8689,184.79,184.71,2.85]
[1760759938936,8.96481809,184.79,184.71,2.85]
[1760759939236,4.09591809,184.78,184.71,2.85]
[1760759939639,4.8689,184.79,184.71,2.85]
[1760759939844,8.96481809,184.79,184.71,2.85]
[1760759940043,4.09591809,184.78,184.71,2.85]
[1760759940345,4.8682,184.81,184.73,2.85]
[1760759941042,8.95303438,184.81,184.73,2.85]
[1760759941240,4.08483438,184.8,184.73,2.85]
[1760759941436,51.95602457,184.85,184.74,2.85]
[1760759941437,4.8677,184.83,184.74,2.85]
[1760759941838,4.082915,184.83,184.75,4.8697]
[1760759942037,8.74544047,184.84,184.76,2.85]
[1760759942844,4.082915,184.84,184.76,2.85]
[1760759945543,51.7781478,184.85,184.76,2.85]
[1760759949049,6.8981478,184.85,184.76,4.8693]
[1760759949351,1.29822564,184.84,184.77,2.82]
[1760759950051,1.29822564,184.84,184.78,2.82]
[1760759951452,1.29822564,184.86,184.79,2.86]
[1760759952449,4.8667,184.87,184.78,4.8687]
[1760759952450,1.29822564,184.84,184.78,4.8687]
[1760759952750,1.29822564,184.84,184.79,2.86]
[1760759953249,1.29822564,184.84,184.8,2.86]
[1760759953447,1.29822564,184.84,184.79,2.86]
[1760759953752,1.29822564,184.84,184.78,4.8687]
[1760759953944,1.29822564,184.84,184.8,2.86]
[1760759955150,1.29822564,184.84,184.79,2.86]
[1760759955551,1.29822564,184.84,184.78,4.8687]
[1760759955752,1.29822564,184.84,184.8,2.86]
[1760759955952,1.29822564,184.84,184.79,2.86]
[1760759956650,1.29822564,184.84,184.78,4.8687]
[1760759956853,1.29822564,184.84,184.79,2.86]
[1760759957647,1.29822564,184.86,184.79,2.86]
[1760759961065,1.29822564,184.86,184.81,2.86]
[1760759961450,1.29822564,184.86,184.8,4.8684]
[1760759961651,1.29822564,184.86,184.81,2.86]
[1760759962456,1.29822564,184.88,184.82,2.86]
[1760759963260,1.29822564,184.88,184.82,7.7277]
[1760759963953,1.29822564,184.86,184.81,2.86]
[1760759964260,60.8294898,184.91,184.81,2.86]
[1760759964261,1.29822564,184.84,184.81,2.86]
[1760759964760,1.29822564,184.82,184.73,2.86]
[1760759965962,1.29822564,184.82,184.76,4.8694]
[1760759966259,1.29822564,184.82,184.77,2.86]
[1760759966661,1.29822564,184.82,184.72,1.29822564]
[1760759966662,4.8669,184.86,184.79,2.86]